{"text_format":"3","workbook":"xlsx","n_sheets":1,"sheets":["Rozpočet výdavkov"],"not_rendered":{"charts":2,"defined_names":3},"read":"whole","date_system":"1900"}

{"sheet":"Rozpočet výdavkov","index":0,"n_rows":47,"n_cols":7,"rows_kept":47,"merged":[[0,1,0,4],[0,5,0,6],[16,1,16,6],[48,1,48,6]]}
[null,"Rozpočet výdavkov",{"$nulls":3},"CONTOSO, 2013"]
[]
[]
[null,"ROZPOČET PERSONÁLU "]
{"$rows_empty":7}
[null,"STAV","PERSONÁL","ROZPOČET","SKUTOČNE","ROZDIEL (€)","ROZDIEL (%)"]
[null,{"$f":"IFERROR('Rozpočet výdavkov'!$E13/'Rozpočet výdavkov'!$D13,\"\")","v":{"v":1.13,"d":"$1.13"}},"Kancelária",{"v":500,"d":"500.00 €"},{"v":565,"d":"565.00 €"},{"$f":"'Rozpočet výdavkov'!$D13-'Rozpočet výdavkov'!$E13","v":{"v":-65,"d":"-65.00 €"}},{"$f":"IFERROR('Rozpočet výdavkov'!$F$13:$F$16/'Rozpočet výdavkov'!$D$13:$D$16,\"\")","v":{"v":-0.13,"d":"-13%"}}]
[null,{"$f":"IFERROR('Rozpočet výdavkov'!$E14/'Rozpočet výdavkov'!$D14,\"\")","v":{"v":1.2,"d":"$1.20"}},"Obchod",{"v":125,"d":"125.00 €"},{"v":150,"d":"150.00 €"},{"$f":"'Rozpočet výdavkov'!$D14-'Rozpočet výdavkov'!$E14","v":{"v":-25,"d":"-25.00 €"}},{"$f":"IFERROR('Rozpočet výdavkov'!$F$13:$F$16/'Rozpočet výdavkov'!$D$13:$D$16,\"\")","v":{"v":-0.2,"d":"-20%"}}]
[null,{"$f":"IFERROR('Rozpočet výdavkov'!$E15/'Rozpočet výdavkov'!$D15,\"\")","v":{"v":1,"d":"$1.00"}},"Predajcovia",{"v":100,"d":"100.00 €"},{"v":100,"d":"100.00 €"},{"$f":"'Rozpočet výdavkov'!$D15-'Rozpočet výdavkov'!$E15","v":{"v":0,"d":"0.00 €"}},{"$f":"IFERROR('Rozpočet výdavkov'!$F$13:$F$16/'Rozpočet výdavkov'!$D$13:$D$16,\"\")","v":{"v":0,"d":"0%"}}]
[null,{"$f":"IFERROR('Rozpočet výdavkov'!$E16/'Rozpočet výdavkov'!$D16,\"\")","v":{"v":0.9,"d":"$0.90"}},"Iné",{"v":100,"d":"100.00 €"},{"v":90,"d":"90.00 €"},{"$f":"'Rozpočet výdavkov'!$D16-'Rozpočet výdavkov'!$E16","v":{"v":10,"d":"10.00 €"}},{"$f":"IFERROR('Rozpočet výdavkov'!$F$13:$F$16/'Rozpočet výdavkov'!$D$13:$D$16,\"\")","v":{"v":0.1,"d":"10%"}}]
[]
[]
[null," PREVÁDZKOVÝ ROZPOČET"]
{"$rows_empty":7}
[null,"STAV","PREVÁDZKA","ROZPOČET","SKUTOČNE","ROZDIEL (€)","ROZDIEL (%)"]
[null,{"$f":"IFERROR(tblPrevádzkovéVýdavky[[#This Row],[SKUTOČNE]]/tblPrevádzkovéVýdavky[[#This Row],[ROZPOČET]],\"\")","v":{"v":0.98,"d":"$0.98"}},"Reklama",{"v":250,"d":"250.00 €"},{"v":245,"d":"245.00 €"},{"$f":"tblPrevádzkovéVýdavky[[#This Row],[ROZPOČET]]-tblPrevádzkovéVýdavky[[#This Row],[SKUTOČNE]]","v":{"v":5,"d":"5.00 €"}},{"$f":"IFERROR(tblPrevádzkovéVýdavky[[#This Row],[ROZDIEL (€)]]/tblPrevádzkovéVýdavky[[#This Row],[ROZPOČET]],\"\")","v":{"v":0.02,"d":"2%"}}]
[null,{"$f":"IFERROR(tblPrevádzkovéVýdavky[[#This Row],[SKUTOČNE]]/tblPrevádzkovéVýdavky[[#This Row],[ROZPOČET]],\"\")","v":{"v":1.2,"d":"$1.20"}},"Dlhy",{"v":125,"d":"125.00 €"},{"v":150,"d":"150.00 €"},{"$f":"tblPrevádzkovéVýdavky[[#This Row],[ROZPOČET]]-tblPrevádzkovéVýdavky[[#This Row],[SKUTOČNE]]","v":{"v":-25,"d":"-25.00 €"}},{"$f":"IFERROR(tblPrevádzkovéVýdavky[[#This Row],[ROZDIEL (€)]]/tblPrevádzkovéVýdavky[[#This Row],[ROZPOČET]],\"\")","v":{"v":-0.2,"d":"-20%"}}]
[null,{"$f":"IFERROR(tblPrevádzkovéVýdavky[[#This Row],[SKUTOČNE]]/tblPrevádzkovéVýdavky[[#This Row],[ROZPOČET]],\"\")","v":{"v":1,"d":"$1.00"}},"Výhody",{"v":100,"d":"100.00 €"},{"v":100,"d":"100.00 €"},{"$f":"tblPrevádzkovéVýdavky[[#This Row],[ROZPOČET]]-tblPrevádzkovéVýdavky[[#This Row],[SKUTOČNE]]","v":{"v":0,"d":"0.00 €"}},{"$f":"IFERROR(tblPrevádzkovéVýdavky[[#This Row],[ROZDIEL (€)]]/tblPrevádzkovéVýdavky[[#This Row],[ROZPOČET]],\"\")","v":{"v":0,"d":"0%"}}]
[null,{"$f":"IFERROR(tblPrevádzkovéVýdavky[[#This Row],[SKUTOČNE]]/tblPrevádzkovéVýdavky[[#This Row],[ROZPOČET]],\"\")","v":{"v":0.9,"d":"$0.90"}},"Zásoby",{"v":100,"d":"100.00 €"},{"v":90,"d":"90.00 €"},{"$f":"tblPrevádzkovéVýdavky[[#This Row],[ROZPOČET]]-tblPrevádzkovéVýdavky[[#This Row],[SKUTOČNE]]","v":{"v":10,"d":"10.00 €"}},{"$f":"IFERROR(tblPrevádzkovéVýdavky[[#This Row],[ROZDIEL (€)]]/tblPrevádzkovéVýdavky[[#This Row],[ROZPOČET]],\"\")","v":{"v":0.1,"d":"10%"}}]
[null,{"$f":"IFERROR(tblPrevádzkovéVýdavky[[#This Row],[SKUTOČNE]]/tblPrevádzkovéVýdavky[[#This Row],[ROZPOČET]],\"\")","v":""},"Poštovné",null,null,{"$f":"tblPrevádzkovéVýdavky[[#This Row],[ROZPOČET]]-tblPrevádzkovéVýdavky[[#This Row],[SKUTOČNE]]","v":{"v":0,"d":"0.00 €"}},{"$f":"IFERROR(tblPrevádzkovéVýdavky[[#This Row],[ROZDIEL (€)]]/tblPrevádzkovéVýdavky[[#This Row],[ROZPOČET]],\"\")","v":""}]
[null,{"$f":"IFERROR(tblPrevádzkovéVýdavky[[#This Row],[SKUTOČNE]]/tblPrevádzkovéVýdavky[[#This Row],[ROZPOČET]],\"\")","v":""},"Pôžička alebo hypotéka",null,null,{"$f":"tblPrevádzkovéVýdavky[[#This Row],[ROZPOČET]]-tblPrevádzkovéVýdavky[[#This Row],[SKUTOČNE]]","v":{"v":0,"d":"0.00 €"}},{"$f":"IFERROR(tblPrevádzkovéVýdavky[[#This Row],[ROZDIEL (€)]]/tblPrevádzkovéVýdavky[[#This Row],[ROZPOČET]],\"\")","v":""}]
[null,{"$f":"IFERROR(tblPrevádzkovéVýdavky[[#This Row],[SKUTOČNE]]/tblPrevádzkovéVýdavky[[#This Row],[ROZPOČET]],\"\")","v":""},"Výdavky na predaj",null,null,{"$f":"tblPrevádzkovéVýdavky[[#This Row],[ROZPOČET]]-tblPrevádzkovéVýdavky[[#This Row],[SKUTOČNE]]","v":{"v":0,"d":"0.00 €"}},{"$f":"IFERROR(tblPrevádzkovéVýdavky[[#This Row],[ROZDIEL (€)]]/tblPrevádzkovéVýdavky[[#This Row],[ROZPOČET]],\"\")","v":""}]
[null,{"$f":"IFERROR(tblPrevádzkovéVýdavky[[#This Row],[SKUTOČNE]]/tblPrevádzkovéVýdavky[[#This Row],[ROZPOČET]],\"\")","v":""},"Dane",null,null,{"$f":"tblPrevádzkovéVýdavky[[#This Row],[ROZPOČET]]-tblPrevádzkovéVýdavky[[#This Row],[SKUTOČNE]]","v":{"v":0,"d":"0.00 €"}},{"$f":"IFERROR(tblPrevádzkovéVýdavky[[#This Row],[ROZDIEL (€)]]/tblPrevádzkovéVýdavky[[#This Row],[ROZPOČET]],\"\")","v":""}]
[null,{"$f":"IFERROR(tblPrevádzkovéVýdavky[[#This Row],[SKUTOČNE]]/tblPrevádzkovéVýdavky[[#This Row],[ROZPOČET]],\"\")","v":""},"Verejné služby",null,null,{"$f":"tblPrevádzkovéVýdavky[[#This Row],[ROZPOČET]]-tblPrevádzkovéVýdavky[[#This Row],[SKUTOČNE]]","v":{"v":0,"d":"0.00 €"}},{"$f":"IFERROR(tblPrevádzkovéVýdavky[[#This Row],[ROZDIEL (€)]]/tblPrevádzkovéVýdavky[[#This Row],[ROZPOČET]],\"\")","v":""}]
[null,{"$f":"IFERROR(tblPrevádzkovéVýdavky[[#This Row],[SKUTOČNE]]/tblPrevádzkovéVýdavky[[#This Row],[ROZPOČET]],\"\")","v":""},"Iné",null,null,{"$f":"tblPrevádzkovéVýdavky[[#This Row],[ROZPOČET]]-tblPrevádzkovéVýdavky[[#This Row],[SKUTOČNE]]","v":{"v":0,"d":"0.00 €"}},{"$f":"IFERROR(tblPrevádzkovéVýdavky[[#This Row],[ROZDIEL (€)]]/tblPrevádzkovéVýdavky[[#This Row],[ROZPOČET]],\"\")","v":""}]
[null,{"$f":"IFERROR(tblPrevádzkovéVýdavky[[#This Row],[SKUTOČNE]]/tblPrevádzkovéVýdavky[[#This Row],[ROZPOČET]],\"\")","v":""},"Poistenie",null,null,{"$f":"tblPrevádzkovéVýdavky[[#This Row],[ROZPOČET]]-tblPrevádzkovéVýdavky[[#This Row],[SKUTOČNE]]","v":{"v":0,"d":"0.00 €"}},{"$f":"IFERROR(tblPrevádzkovéVýdavky[[#This Row],[ROZDIEL (€)]]/tblPrevádzkovéVýdavky[[#This Row],[ROZPOČET]],\"\")","v":""}]
[null,{"$f":"IFERROR(tblPrevádzkovéVýdavky[[#This Row],[SKUTOČNE]]/tblPrevádzkovéVýdavky[[#This Row],[ROZPOČET]],\"\")","v":""},"Úrok",null,null,{"$f":"tblPrevádzkovéVýdavky[[#This Row],[ROZPOČET]]-tblPrevádzkovéVýdavky[[#This Row],[SKUTOČNE]]","v":{"v":0,"d":"0.00 €"}},{"$f":"IFERROR(tblPrevádzkovéVýdavky[[#This Row],[ROZDIEL (€)]]/tblPrevádzkovéVýdavky[[#This Row],[ROZPOČET]],\"\")","v":""}]
[null,{"$f":"IFERROR(tblPrevádzkovéVýdavky[[#This Row],[SKUTOČNE]]/tblPrevádzkovéVýdavky[[#This Row],[ROZPOČET]],\"\")","v":""},"Telefón",null,null,{"$f":"tblPrevádzkovéVýdavky[[#This Row],[ROZPOČET]]-tblPrevádzkovéVýdavky[[#This Row],[SKUTOČNE]]","v":{"v":0,"d":"0.00 €"}},{"$f":"IFERROR(tblPrevádzkovéVýdavky[[#This Row],[ROZDIEL (€)]]/tblPrevádzkovéVýdavky[[#This Row],[ROZPOČET]],\"\")","v":""}]
[null,{"$f":"IFERROR(tblPrevádzkovéVýdavky[[#This Row],[SKUTOČNE]]/tblPrevádzkovéVýdavky[[#This Row],[ROZPOČET]],\"\")","v":""},"Údržba a opravy",null,null,{"$f":"tblPrevádzkovéVýdavky[[#This Row],[ROZPOČET]]-tblPrevádzkovéVýdavky[[#This Row],[SKUTOČNE]]","v":{"v":0,"d":"0.00 €"}},{"$f":"IFERROR(tblPrevádzkovéVýdavky[[#This Row],[ROZDIEL (€)]]/tblPrevádzkovéVýdavky[[#This Row],[ROZPOČET]],\"\")","v":""}]
[null,{"$f":"IFERROR(tblPrevádzkovéVýdavky[[#This Row],[SKUTOČNE]]/tblPrevádzkovéVýdavky[[#This Row],[ROZPOČET]],\"\")","v":""},"Právne poplatky",null,null,{"$f":"tblPrevádzkovéVýdavky[[#This Row],[ROZPOČET]]-tblPrevádzkovéVýdavky[[#This Row],[SKUTOČNE]]","v":{"v":0,"d":"0.00 €"}},{"$f":"IFERROR(tblPrevádzkovéVýdavky[[#This Row],[ROZDIEL (€)]]/tblPrevádzkovéVýdavky[[#This Row],[ROZPOČET]],\"\")","v":""}]
[null,{"$f":"IFERROR(tblPrevádzkovéVýdavky[[#This Row],[SKUTOČNE]]/tblPrevádzkovéVýdavky[[#This Row],[ROZPOČET]],\"\")","v":""},"Odpisy",null,null,{"$f":"tblPrevádzkovéVýdavky[[#This Row],[ROZPOČET]]-tblPrevádzkovéVýdavky[[#This Row],[SKUTOČNE]]","v":{"v":0,"d":"0.00 €"}},{"$f":"IFERROR(tblPrevádzkovéVýdavky[[#This Row],[ROZDIEL (€)]]/tblPrevádzkovéVýdavky[[#This Row],[ROZPOČET]],\"\")","v":""}]
[null,{"$f":"IFERROR(tblPrevádzkovéVýdavky[[#This Row],[SKUTOČNE]]/tblPrevádzkovéVýdavky[[#This Row],[ROZPOČET]],\"\")","v":""},"Preprava",null,null,{"$f":"tblPrevádzkovéVýdavky[[#This Row],[ROZPOČET]]-tblPrevádzkovéVýdavky[[#This Row],[SKUTOČNE]]","v":{"v":0,"d":"0.00 €"}},{"$f":"IFERROR(tblPrevádzkovéVýdavky[[#This Row],[ROZDIEL (€)]]/tblPrevádzkovéVýdavky[[#This Row],[ROZPOČET]],\"\")","v":""}]
[null,{"$f":"IFERROR(tblPrevádzkovéVýdavky[[#This Row],[SKUTOČNE]]/tblPrevádzkovéVýdavky[[#This Row],[ROZPOČET]],\"\")","v":""},"Skladovanie",null,null,{"$f":"tblPrevádzkovéVýdavky[[#This Row],[ROZPOČET]]-tblPrevádzkovéVýdavky[[#This Row],[SKUTOČNE]]","v":{"v":0,"d":"0.00 €"}},{"$f":"IFERROR(tblPrevádzkovéVýdavky[[#This Row],[ROZDIEL (€)]]/tblPrevádzkovéVýdavky[[#This Row],[ROZPOČET]],\"\")","v":""}]
[null,{"$f":"IFERROR(tblPrevádzkovéVýdavky[[#This Row],[SKUTOČNE]]/tblPrevádzkovéVýdavky[[#This Row],[ROZPOČET]],\"\")","v":""},"Iné",null,null,{"$f":"tblPrevádzkovéVýdavky[[#This Row],[ROZPOČET]]-tblPrevádzkovéVýdavky[[#This Row],[SKUTOČNE]]","v":{"v":0,"d":"0.00 €"}},{"$f":"IFERROR(tblPrevádzkovéVýdavky[[#This Row],[ROZDIEL (€)]]/tblPrevádzkovéVýdavky[[#This Row],[ROZPOČET]],\"\")","v":""}]
[null,null,"Celkové výdavky",{"$f":"SUBTOTAL(109,tblPrevádzkovéVýdavky[ROZPOČET],'Rozpočet výdavkov'!$D$13:$D$16)","v":{"v":1400,"d":"1,400.00 €"}},{"$f":"SUBTOTAL(109,tblPrevádzkovéVýdavky[SKUTOČNE],'Rozpočet výdavkov'!$E$13:$E$16)","v":{"v":1490,"d":"1,490.00 €"}},{"$f":"SUBTOTAL(109,tblPrevádzkovéVýdavky[ROZDIEL (€)],'Rozpočet výdavkov'!$F$13:$F$16)","v":{"v":-90,"d":"-90.00 €"}},{"$f":"IFERROR(SUM(tblPrevádzkovéVýdavky[[#Totals],[ROZDIEL (€)]]/tblPrevádzkovéVýdavky[[#Totals],[ROZPOČET]]),\"\")","v":{"v":-0.06428571428571428,"d":"-6%"}}]